bitfinex/quotes_SOLUSD_20241117
["timestamp","ask_amount","ask_price","bid_price","bid_amount"]
[1731823301150,28.33384823,236.85,236.76,43.11654823]
[1731823301382,28.33384823,236.83,236.76,10.5592]
[1731823302451,28.33384823,236.83,236.76,14.7828]
[1731823302652,28.33384823,236.85,236.76,43.11664823]
[1731823303655,28.33384823,236.81,236.72,28.33384823]
[1731823303856,28.33384823,236.81,236.72,32.55814823]
[1731823304271,28.33384823,236.83,236.74,28.33384823]
[1731823305369,28.33384823,236.81,236.74,32.55774823]
[1731823305850,28.33384823,236.81,236.61,10.5655]
[1731823305851,0.34465462,236.74,236.61,10.5655]
[1731823306055,28.33384823,236.7,236.61,38.89934823]
[1731823307062,28.33384823,236.7,236.61,43.12564823]
[1731823307264,28.33384823,236.72,236.63,28.33384823]
[1731823308274,28.33384823,236.72,236.64,4.2258]
[1731823308778,28.33384823,236.72,236.64,14.7903]
[1731823310691,0.09004131,236.65,236.64,14.7903]
[1731823310890,7.90833804,236.85,236.7,159.98444013]
[1731823311097,43.7813,236.81,236.64,10.5645]
[1731823311770,43.7813,236.81,236.66,4.2253]
[1731823312297,43.7813,236.81,236.64,14.7903]
[1731823313393,0.08424122,236.72,236.65,28.33384823]
[1731823313575,0.08424122,236.72,236.7,24.12153862]
[1731823313783,0.08424122,236.72,236.7,24.22153862]
[1731823313980,0.08424122,236.72,236.7,24.32153862]
[1731823314188,0.08424122,236.72,236.7,92.32713862]
[1731823314489,0.08424122,236.72,236.71,49.43153862]
[1731823314892,0.08424122,236.72,236.71,49.53153862]
[1731823315193,0.08424122,236.72,236.71,53.65603862]
[1731823315396,0.07685072,236.74,236.72,24.22153862]
[1731823315694,0.07685072,236.74,236.72,52.55538685]
[1731823316193,0.07685072,236.74,236.72,52.45538685]
[1731823316394,0.07685072,236.74,236.72,52.55538685]
[1731823316802,0.07685072,236.74,236.72,52.45538685]
[1731823317002,12.4733,236.92,236.81,160.33870993]
[1731823317003,28.33384823,236.84,236.81,160.33870993]
[1731823317203,28.33384823,236.82,236.74,28.33384823]
[1731823317698,28.33384823,236.84,236.74,28.33384823]
[1731823318296,28.33384823,236.84,236.76,28.33384823]
[1731823318712,28.33384823,236.86,236.76,28.33384823]
[1731823319000,28.33384823,236.84,236.76,28.33384823]
[1731823320387,28.33384823,236.88,236.78,28.33384823]
[1731823320701,28.33384823,236.84,236.74,28.33384823]
[1731823321094,28.33384823,236.82,236.72,28.33384823]
[1731823321606,28.33384823,236.82,236.72,32.55804823]
[1731823321788,28.33384823,236.82,236.74,28.33384823]
[1731823321982,28.33384823,236.88,236.8,28.33384823]
[1731823322591,0.09367462,236.91,236.8,28.33384823]
[1731823322903,28.33384823,236.88,236.78,32.55714823]
[1731823323303,28.33384823,236.88,236.8,28.33384823]
[1731823323505,1.687673,236.96,236.91,160.5]
[1731823323725,18.99099094,237.02,236.95,28.33384823]
[1731823323726,12.4733,237.02,236.95,28.33384823]
[1731823324009,28.33384823,236.99,236.91,28.33384823]
[1731823324300,28.33384823,236.99,236.84,8.09348404]
[1731823324301,28.33384823,236.93,236.84,28.33384823]
[1731823324695,28.33384823,236.94,236.84,28.33384823]
[1731823324892,28.33384823,236.92,236.84,28.33384823]
[1731823325097,0.34465462,236.91,236.82,28.33384823]
[1731823325288,0.25098,236.93,236.84,28.33384823]
[1731823326390,28.33384823,236.94,236.84,28.33384823]
[1731823326620,28.33384823,236.94,236.86,28.33384823]
[1731823326781,17.69182502,236.93,236.84,17.69182502]
[1731823327189,0.34465462,236.94,236.86,17.69182502]
[1731823327988,18.03647964,236.94,236.84,17.69182502]
[1731823328604,20.0,237.0,236.86,17.69182502]
[1731823328809,0.25098,236.94,236.86,17.69182502]
[1731823329001,17.69182502,236.87,236.78,28.24992502]
[1731823329204,0.25098,236.88,236.78,28.24992502]
[1731823329392,0.25098,236.88,236.8,17.69182502]
[1731823330215,17.94280502,236.88,236.8,17.69182502]
[1731823330385,17.69182502,236.9,236.8,17.69182502]
[1731823330587,0.07681488,236.81,236.8,17.69182502]
[1731823330809,0.08200892,236.85,236.84,160.15564336]
[1731823332817,0.08200892,236.85,236.73,17.69182502]
[1731823332818,0.12549,236.84,236.68,1.687576]
[1731823332989,17.69182502,236.78,236.69,17.69182502]
[1731823333189,23.85889292,236.85,236.75,17.69182502]
[1731823333190,0.08200892,236.85,236.75,17.69182502]
[1731823334110,0.08200892,236.85,236.81,17.69182502]
[1731823334893,0.08200892,236.85,236.83,17.69182502]
[1731823337612,0.08200892,236.85,236.81,17.69182502]
[1731823338006,17.86750856,236.85,236.77,31.0664]
[1731823338207,17.69182502,236.81,236.74,10.5599]
[1731823338527,0.08200892,236.85,236.76,17.69182502]
[1731823339021,0.08200892,236.85,236.78,17.69182502]
[1731823339395,0.08200892,236.85,236.75,0.09367462]
[1731823339603,0.08200892,236.85,236.8,17.69182502]
[1731823340219,0.08200892,236.85,236.84,17.69182502]
[1731823340394,17.69182502,236.93,236.84,17.69182502]
[1731823340395,30.58422502,236.95,236.9,159.99080732]
[1731823340598,17.69182502,236.95,236.84,17.69182502]
[1731823341197,17.69182502,236.94,236.84,17.69182502]
[1731823341410,17.69182502,236.94,236.85,4.222]
[1731823342018,12.8924,237.0,236.86,17.69182502]
[1731823342224,17.69182502,236.96,236.86,17.69182502]
[1731823342906,0.12549,236.99,236.87,28.29630433]
[1731823343117,28.29630433,236.98,236.87,32.51790433]
[1731823343416,28.29630433,236.9,236.8,28.29630433]
[1731823343798,28.29630433,236.95,236.84,28.29630433]
[1731823344301,28.29630433,236.93,236.82,28.29630433]
[1731823345130,28.29630433,236.89,236.8,14.7801]
[1731823345934,28.29630433,236.91,236.81,28.29630433]
[1731823346110,28.29630433,236.93,236.83,28.29630433]
[1731823346429,28.29630433,236.97,236.85,28.29630433]
[1731823346732,28.29630433,236.93,236.83,28.29630433]
[1731823347120,28.29630433,236.95,236.85,28.29630433]
[1731823347317,28.29630433,236.95,236.86,4.2219]
[1731823347635,28.29630433,236.93,236.86,10.5547]
[1731823349018,28.29630433,236.93,236.83,28.29630433]
[1731823349261,28.29630433,236.91,236.81,43.07570433]
[1731823349529,28.29630433,236.93,236.83,28.29630433]
[1731823349908,28.29630433,236.95,236.85,28.29630433]
[1731823350613,0.088199,236.86,236.85,28.29630433]
[1731823350810,0.08187697,236.95,236.91,159.97200845]
[1731823351015,0.08187697,236.95,236.91,23.776884]
[1731823351927,0.08187697,236.95,236.91,27.997884]
[1731823352341,0.08187697,236.95,236.91,53.307884]
[1731823352511,0.08187697,236.95,236.93,52.19867833]
[1731823352838,0.08187697,236.95,236.92,23.776884]
[1731823353619,0.08187697,236.95,236.92,27.997584]
[1731823354124,0.08187697,236.95,236.92,23.776884]
[1731823354528,0.08187697,236.95,236.92,38.549584]
[1731823354835,0.08187697,236.95,236.93,52.41784295]
[1731823356112,0.08187697,236.95,236.93,45.20614295]
[1731823356525,28.29630433,237.1,237.04,160.33139826]
[1731823356717,28.29630433,237.12,237.03,28.42179433]
[1731823357027,28.29630433,237.08,236.99,28.29630433]
[1731823357228,28.29630433,237.08,237.0,23.776884]
[1731823357434,28.29630433,237.13,237.03,28.29630433]
[1731823357609,28.29630433,237.13,237.04,27.995484]
[1731823357930,28.29630433,237.09,237.02,10.5473]
[1731823358232,28.29630433,237.03,236.98,30.1025]
[1731823359243,28.29630433,237.07,236.98,30.1025]
[1731823359528,28.29630433,237.07,236.99,23.776884]
[1731823360119,28.29630433,237.07,236.99,27.996284]
[1731823360315,28.29630433,237.09,236.99,27.996284]
[1731823360530,28.29630433,237.07,236.99,23.776884]
[1731823361416,6.51769094,237.19,237.0,4.2194]
[1731823361614,28.29630433,237.09,237.0,43.06420433]
[1731823361813,28.29630433,237.05,236.98,30.1025]
[1731823362821,28.29630433,237.0,236.92,43.0037]
[1731823363146,28.29630433,236.96,236.87,30.1025]
[1731823364438,28.29630433,236.96,236.88,23.902374]
[1731823364635,28.29630433,236.98,236.88,52.19867833]
[1731823365624,28.29630433,236.98,236.9,23.776884]
[1731823366419,28.29630433,236.98,236.87,62.62040433]
[1731823366617,28.29630433,236.96,236.87,34.3241]
[1731823366833,28.29630433,236.96,236.87,44.8784]
[1731823367138,28.29630433,236.96,236.87,73.17470433]
[1731823367345,28.29630433,236.96,236.87,44.8784]
[1731823367518,28.29630433,236.96,236.88,23.776884]
[1731823367821,28.29630433,236.96,236.88,27.998284]
[1731823368843,17.68399101,236.97,236.88,27.998284]
[1731823369649,17.68399101,236.97,236.88,4.2214]
[1731823369853,17.68399101,236.97,236.89,23.776884]
[1731823370244,17.68399101,236.95,236.87,30.1025]
[1731823370544,0.1,237.05,236.82,31.6689]
[1731823370545,17.68399101,236.91,236.82,14.7789]
[1731823370753,0.08572756,236.88,236.82,14.7789]
[1731823371725,17.68399101,236.85,236.76,10.5587]
[1731823371929,17.68399101,236.85,236.76,14.7823]
[1731823373149,17.68399101,236.85,236.77,23.776884]
[1731823373346,17.68399101,236.81,236.7,10.5616]
[1731823373536,17.68399101,236.81,236.72,17.68399101]
[1731823374048,17.68399101,236.83,236.72,17.68399101]
[1731823374432,17.68399101,236.77,236.71,10.5614]
[1731823374631,17.68399101,236.75,236.69,32.7637]
[1731823375247,17.68399101,236.77,236.67,4.2251]
[1731823375629,17.68399101,236.77,236.68,23.776884]
[1731823376767,28.34532253,236.76,236.68,23.776884]
[1731823377848,28.34532253,236.76,236.67,4.2251]
[1731823377849,28.34532253,236.72,236.65,12.5209]
[1731823378059,28.34532253,236.66,236.59,32.7637]
[1731823378354,28.34532253,236.59,236.58,0.4656599]
[1731823379151,48.68997715,236.59,236.58,0.4656599]
[1731823379455,20.34465462,236.56,236.39,12.5209]
[1731823379664,28.34532253,236.45,236.38,32.7637]
[1731823379833,28.34532253,236.45,236.38,7.61604781]
[1731823380027,28.34532253,236.45,236.37,11.09524381]
[1731823380259,28.34532253,236.43,236.37,8.23423137]
[1731823380629,28.34532253,236.43,236.37,0.51884381]
[1731823381751,28.34532253,236.43,236.34,0.4656599]
[1731823382344,28.34532253,236.41,236.34,0.4656599]
[1731823382650,28.34532253,236.39,236.34,0.4656599]
[1731823382831,28.34532253,236.37,236.34,0.4656599]
[1731823383252,0.1,236.45,236.34,0.4656599]
[1731823383253,28.34532253,236.35,236.34,0.4656599]
[1731823383741,28.68997715,236.35,236.34,0.4656599]
[1731823383949,48.68997715,236.35,236.34,0.4656599]
[1731823385473,0.1,236.38,236.34,0.4656599]
[1731823385474,28.34532253,236.37,236.34,0.4656599]
[1731823385769,0.21916462,236.36,236.34,0.4656599]
[1731823386066,28.43899715,236.35,236.34,0.4656599]
[1731823386637,28.56448715,236.35,236.34,0.4656599]
[1731823387042,28.68997715,236.35,236.34,0.4656599]
[1731823387440,72.56686115,236.35,236.34,0.4656599]
[1731823387663,101.01218368,236.35,236.34,0.4656599]
[1731823387865,101.01218368,236.35,236.19,6.72436523]
[1731823387866,0.12549,236.26,236.19,6.72436523]
[1731823388158,28.34532253,236.22,236.19,6.72436523]
[1731823388363,0.25098,236.19,236.08,28.34532253]
[1731823388567,28.34532253,236.18,236.08,28.34532253]
[1731823388867,0.09367462,236.15,236.06,28.34532253]
[1731823389065,28.34532253,236.16,236.06,28.34532253]
[1731823389359,0.25098,236.13,236.04,28.34532253]
[1731823389558,28.34532253,236.14,236.04,28.34532253]
[1731823389937,0.09367462,236.13,236.04,28.34532253]
[1731823390240,0.1,236.23,236.06,28.34532253]
[1731823390453,28.34532253,236.19,236.1,28.34532253]
[1731823390659,0.08563642,236.12,236.1,28.34532253]
[1731823390844,0.08090815,236.16,236.15,160.17082739]
[1731823392045,0.08090815,236.16,236.06,28.34532253]
[1731823392249,0.08090815,236.16,236.08,28.34532253]
[1731823392966,0.08090815,236.16,236.14,28.34532253]
[1731823393269,0.08090815,236.16,236.11,28.81098243]
[1731823393642,0.08090815,236.16,236.15,28.34532253]
[1731823394643,0.08090815,236.16,236.15,32.57982253]
[1731823394867,0.0017862,236.19,236.17,24.027864]
[1731823395058,0.0017862,236.19,236.18,28.34532253]
[1731823395252,0.0017862,236.19,236.18,52.12220653]
[1731823395567,0.0017862,236.19,236.18,28.34532253]
[1731823395757,0.0017862,236.19,236.18,52.12220653]
[1731823396069,0.0017862,236.19,236.18,56.35620653]
[1731823396369,0.0017862,236.19,236.18,32.57932253]
[1731823396747,0.0017862,236.19,236.18,56.35620653]
[1731823397068,0.0017862,236.19,236.18,32.57932253]
[1731823399475,28.34532253,236.36,236.25,160.32023083]
[1731823399766,28.34532253,236.38,236.28,28.34532253]
[1731823400140,28.34532253,236.38,236.26,32.57792253]
[1731823400741,28.34532253,236.38,236.28,28.34532253]
[1731823401146,28.34532253,236.4,236.3,28.34532253]
[1731823402148,13.1069,236.46,236.26,42.2215]
[1731823402149,28.34532253,236.36,236.26,70.56682253]
[1731823402361,28.34532253,236.34,236.26,42.2215]
[1731823402564,28.34532253,236.34,236.26,10.5815]
[1731823402954,28.34532253,236.32,236.22,28.34532253]
[1731823403271,28.34532253,236.32,236.2,10.5838]
[1731823403272,28.34532253,236.3,236.21,4.2334]
[1731823403873,28.34532253,236.3,236.2,10.5838]
[1731823404056,28.34532253,236.28,236.16,45.64942253]
[1731823404251,28.34532253,236.28,236.18,28.34532253]
[1731823404450,28.34532253,236.3,236.18,28.34532253]
[1731823404779,28.34532253,236.28,236.16,45.64942253]
[1731823404965,28.34532253,236.28,236.18,28.34532253]
[1731823405275,28.34532253,236.28,236.19,4.2338]
[1731823405468,28.34532253,236.28,236.18,28.34532253]
[1731823405853,28.34532253,236.28,236.18,32.57912253]
[1731823406056,28.34532253,236.3,236.18,32.57912253]
[1731823406581,28.34532253,236.34,236.22,28.34532253]
[1731823407373,28.34532253,236.32,236.22,32.57852253]
[1731823407557,28.34532253,236.32,236.2,28.34532253]
[1731823407756,28.34532253,236.28,236.18,43.16442253]
[1731823408552,28.34532253,236.26,236.16,45.64952253]
[1731823409558,28.34532253,236.28,236.18,28.34532253]
[1731823410658,0.08197301,236.19,236.18,32.57922253]
[1731823410858,162.5,236.51,236.25,159.90939689]
[1731823411076,162.5,236.53,236.18,32.57922253]
[1731823411260,162.5,236.52,236.18,32.57922253]
[1731823412168,0.1,236.32,236.18,32.57922253]
[1731823412680,28.34532253,236.24,236.14,28.34532253]
[1731823412860,28.34532253,236.22,236.12,28.34532253]
[1731823413182,0.07886438,236.27,236.16,28.34532253]
[1731823413356,0.07886438,236.27,236.18,28.34532253]
[1731823413554,0.07886438,236.27,236.16,28.34532253]
[1731823413757,28.42252245,236.26,236.16,28.34532253]
[1731823414080,28.42252245,236.26,236.16,32.57962253]
[1731823414576,28.34532253,236.24,236.11,11.0538599]
[1731823414878,28.34532253,236.22,236.11,39.39918243]
[1731823415573,28.34532253,236.2,236.11,39.39918243]
[1731823415780,28.34532253,236.14,236.11,0.4656599]
[1731823416092,28.34532253,236.12,236.11,0.4656599]
[1731823416378,52.46686115,236.12,236.11,0.4656599]
[1731823416581,28.34532253,236.12,236.11,0.4656599]
[1731823417866,28.68997715,236.12,236.11,0.4656599]
[1731823418886,28.34532253,236.12,236.11,0.4656599]
[1731823419269,28.43899715,236.12,236.11,0.4656599]
[1731823419473,28.68997715,236.12,236.11,0.4656599]
[1731823419973,48.68997715,236.12,236.11,0.4656599]
[1731823420565,48.68997715,236.12,235.95,28.86568444]
[1731823420566,0.34465462,236.09,235.95,10.595]
[1731823420884,28.34532253,236.01,235.95,10.595]
[1731823421986,28.34532253,235.99,235.92,31.1332]
[1731823422275,28.34532253,235.97,235.9,10.5975]
[1731823423588,28.34532253,236.01,235.9,38.94282253]
[1731823424084,28.34532253,236.03,235.93,23.99604862]
[1731823424320,28.34532253,236.05,235.96,28.34532253]
[1731823425159,28.34532253,236.01,235.96,23.776884]
[1731823425357,28.34532253,236.03,235.96,23.776884]
[1731823425574,28.34532253,235.98,235.88,41.55582253]
[1731823425778,0.41916462,236.06,236.05,132.15467747]
[1731823425989,0.09367462,236.03,235.9,28.34532253]
[1731823426282,0.09367462,236.01,235.9,28.34532253]
[1731823426470,28.34532253,236.0,235.9,28.34532253]
[1731823426861,28.34532253,236.0,235.89,14.8371]
[1731823427174,28.34532253,236.0,235.9,28.34532253]
[1731823427685,28.34532253,236.06,235.96,28.34532253]
[1731823428269,28.34532253,236.08,235.98,28.34532253]
[1731823428669,28.34532253,236.1,236.01,28.34532253]
[1731823428868,28.34532253,236.1,235.99,28.34532253]
[1731823429071,28.34532253,236.04,235.95,28.34532253]
[1731823429276,28.34532253,236.06,235.96,28.34532253]
[1731823429468,28.34532253,236.1,235.98,28.34532253]
[1731823430381,28.34532253,236.1,236.0,28.34532253]
[1731823430681,0.08590989,236.01,236.0,28.34532253]
[1731823431071,0.08590989,236.01,235.98,43.17672253]
[1731823431271,0.08590989,236.01,235.95,28.34532253]
[1731823431670,0.08590989,236.01,235.95,32.58332253]
[1731823432568,0.08590989,236.01,235.97,28.34532253]
[1731823433289,0.08590989,236.01,235.99,28.34532253]
[1731823433585,28.34532253,236.11,236.05,160.09073396]
[1731823433791,28.34532253,236.11,236.01,28.34532253]
[1731823434364,30.9055,236.25,236.05,52.12220653]
[1731823434590,28.34532253,236.2,236.05,52.34137115]
[1731823434892,28.34532253,236.16,236.05,28.34532253]
[1731823435090,28.34532253,236.14,236.03,40.76982253]
[1731823435671,28.34532253,236.14,236.04,4.2365]
[1731823436097,28.34532253,236.14,236.05,28.34532253]
[1731823436470,28.34532253,236.16,236.05,28.34532253]
[1731823436790,12.0645,236.24,236.05,24.12153862]
[1731823436974,28.34532253,236.21,236.05,52.46686115]
[1731823437288,28.34532253,236.19,236.05,52.46686115]
[1731823438187,12.0645,236.24,236.08,0.34465462]
[1731823438368,12.0645,236.24,236.14,28.34532253]
[1731823438570,28.34532253,236.25,236.14,28.34532253]
[1731823438878,28.34532253,236.25,236.16,28.34532253]
[1731823439196,28.34532253,236.33,236.24,28.34532253]
[1731823439396,12.0645,236.36,236.16,12.4245]
[1731823439397,28.34532253,236.31,236.2,28.34532253]
[1731823440175,28.34532253,236.31,236.22,28.34532253]
[1731823440402,28.34532253,236.31,236.21,4.2334]
[1731823441067,28.34532253,236.33,236.22,28.34532253]
[1731823442294,28.34532253,236.35,236.24,28.34532253]
[1731823442967,28.34532253,236.31,236.21,10.5838]
[1731823443179,28.34532253,236.29,236.21,10.5838]
[1731823443998,12.0645,236.36,236.23,28.34532253]
[1731823444179,28.34532253,236.34,236.23,28.34532253]
[1731823444380,28.34532253,236.26,236.14,10.5866]
[1731823444602,28.34532253,236.22,236.14,10.5866]
[1731823444985,28.34532253,236.17,236.1,49.2697]
[1731823445587,28.34532253,236.19,236.1,49.2697]
[1731823445783,28.34532253,236.19,236.1,59.8584]
[1731823446881,20.25098,236.29,236.11,28.34532253]
[1731823446882,28.34532253,236.21,236.11,28.34532253]
[1731823447084,28.34532253,236.21,236.12,4.2351]
[1731823447495,28.34532253,236.21,236.12,14.8229]
[1731823448109,28.34532253,236.2,236.12,14.8229]
[1731823448608,28.34532253,236.22,236.12,14.8229]
[1731823449397,28.34532253,236.18,236.12,10.5878]
[1731823449602,28.34532253,236.16,236.06,10.5901]
[1731823450176,12.7191,236.24,236.07,28.34532253]
[1731823450404,28.34532253,236.2,236.1,28.34532253]
[1731823450612,0.07830137,236.11,236.1,28.34532253]
[1731823450813,28.34532253,236.2,236.17,159.90938264]
[1731823451114,28.34532253,236.2,236.1,32.58072253]
[1731823451308,28.34532253,236.2,236.1,4.2354]
[1731823451513,28.34532253,236.18,236.08,4.2357]
[1731823451717,28.34532253,236.16,236.06,10.5901]
[1731823452019,28.34532253,236.18,236.07,28.34532253]
[1731823452599,28.34532253,236.18,236.08,4.2358]
[1731823452811,12.7191,236.24,236.11,28.34532253]
[1731823452812,28.34532253,236.22,236.11,28.34532253]
[1731823453111,28.34532253,236.24,236.13,28.34532253]
[1731823453317,28.34532253,236.24,236.15,28.34532253]
[1731823453913,28.34532253,236.26,236.15,28.34532253]
[1731823454289,28.34532253,236.26,236.15,32.57982253]
[1731823455206,28.34532253,236.24,236.15,32.57982253]
[1731823456909,28.34532253,236.26,236.15,32.57982253]
[1731823457411,28.34532253,236.24,236.13,43.16722253]
[1731823457618,28.34532253,236.19,236.08,38.93462253]
[1731823457997,28.34532253,236.16,236.08,10.5893]
[1731823458306,28.34532253,236.16,236.06,32.58142253]
[1731823461113,28.34532253,236.13,236.03,51.08802253]
[1731823461902,28.34532253,236.13,236.03,10.5916]
[1731823462118,28.34532253,236.11,236.03,10.5916]
[1731823462607,0.21916462,236.1,235.99,32.58272253]
[1731823462899,28.34532253,236.07,235.98,30.6402]
[1731823463107,28.34532253,236.07,235.97,28.34532253]
[1731823463108,0.21916462,236.06,235.97,28.34532253]
[1731823463308,28.34532253,236.06,235.95,28.34532253]
[1731823464320,28.34532253,236.06,235.96,4.238]
[1731823465821,28.34532253,236.06,235.95,28.34532253]
[1731823466015,28.34532253,236.04,235.94,14.8341]
[1731823466403,28.34532253,236.02,235.94,14.8341]
[1731823468703,28.34532253,236.04,235.95,14.8334]
[1731823468905,28.34532253,236.05,235.95,43.17872253]
[1731823470628,0.08747189,235.98,235.97,4.2378]
[1731823470829,28.43347075,236.05,236.04,159.92142716]
[1731823471008,28.43347075,236.05,235.97,4.2378]
[1731823471408,28.43347075,236.05,235.95,38.94072253]
[1731823471722,28.43347075,236.05,235.95,43.17882253]
[1731823473022,28.34532253,235.99,235.95,10.5954]
[1731823473539,28.34532253,235.97,235.88,4.2394]
[1731823474117,28.34532253,235.95,235.87,0.4656599]
[1731823476031,28.34532253,235.93,235.87,0.4656599]
[1731823476333,28.34532253,235.92,235.87,0.4656599]
[1731823477110,28.34532253,235.9,235.87,0.4656599]
[1731823478440,0.1,235.98,235.87,0.4656599]
[1731823478441,28.34532253,235.92,235.87,0.4656599]
[1731823481016,28.34532253,236.0,235.9,28.34532253]
[1731823481619,28.34532253,235.98,235.9,28.34532253]
[1731823481817,28.34532253,235.93,235.87,15.3041599]
[1731823482033,28.34532253,235.95,235.87,15.3041599]
[1731823484437,28.34532253,235.97,235.88,28.34532253]
[1731823484636,28.34532253,235.99,235.9,28.34532253]
[1731823484939,28.34532253,235.97,235.88,28.34532253]
[1731823485833,28.34532253,235.97,235.88,32.58462253]
[1731823487125,28.34532253,236.01,235.92,28.34532253]
[1731823487518,28.34532253,236.03,235.92,28.34532253]
[1731823487838,28.34532253,236.03,235.93,23.776884]
[1731823488222,28.34532253,236.03,235.94,4.2383]
[1731823488426,0.08814822,236.05,236.01,28.34532253]
[1731823489621,6.51769094,236.25,235.95,0.21916462]
[1731823489622,12.7261,236.19,236.09,160.41185178]
[1731823489824,12.7261,236.19,236.07,28.34532253]
[1731823489825,45.28019153,236.16,236.07,28.34532253]
[1731823490036,28.34532253,236.09,236.04,30.0963]
[1731823490541,28.34532253,236.06,236.04,30.0963]
[1731823490722,0.0769375,236.05,236.04,30.0963]
[1731823492524,0.0769375,236.05,236.04,54.72020998]
[1731823493537,0.0769375,236.05,236.04,53.873184]
[1731823496637,28.34532253,236.17,236.14,159.65920739]
[1731823496827,20.0,236.2,236.12,28.34532253]
[1731823497021,20.0,236.2,236.06,23.776884]
[1731823497022,28.34532253,236.19,236.1,28.34532253]
[1731823498927,28.34532253,236.21,236.12,28.34532253]
[1731823499232,13.2027,236.24,236.14,28.34532253]
[1731823499752,28.34532253,236.25,236.14,28.34532253]
[1731823500850,28.34532253,236.18,236.08,52.12220653]
[1731823502439,28.34532253,236.24,236.14,28.34532253]
[1731823503261,28.34532253,236.16,236.07,28.34532253]
[1731823503559,28.34532253,236.12,236.04,30.0963]
[1731823504427,28.44532253,236.21,236.04,30.0963]
[1731823504428,28.34532253,236.14,236.04,30.0963]
[1731823505828,28.34532253,236.14,236.05,28.34532253]
[1731823507639,48.34532253,236.16,236.07,28.34532253]
[1731823507842,20.0,236.16,236.07,28.34532253]
[1731823508553,28.34532253,236.2,236.11,28.34532253]
[1731823509532,28.34532253,236.22,236.11,28.34532253]
[1731823511261,20.0,236.21,236.11,28.34532253]
[1731823511661,6.51769094,236.24,236.17,28.34532253]
[1731823511956,28.34532253,236.26,236.17,28.34532253]
[1731823512155,28.34532253,236.24,236.15,28.34532253]
[1731823512336,28.34532253,236.26,236.16,23.87055862]
[1731823512537,28.34532253,236.26,236.15,28.34532253]
[1731823512538,51.78441147,236.32,236.22,23.776884]
[1731823512735,28.34532253,236.32,236.22,23.776884]
[1731823512933,28.34532253,236.34,236.25,28.34532253]
[1731823513258,51.07079094,236.36,236.23,28.34532253]
[1731823513259,28.34532253,236.32,236.23,28.34532253]
[1731823513441,28.34532253,236.32,236.22,23.776884]
[1731823513643,28.34532253,236.32,236.23,28.34532253]
[1731823514863,28.34532253,236.34,236.23,28.34532253]
[1731823515864,28.34532253,236.34,236.25,28.34532253]
[1731823516462,28.34532253,236.36,236.27,28.34532253]
[1731823516654,28.34532253,236.38,236.27,28.34532253]
[1731823517347,28.34532253,236.36,236.27,28.34532253]
[1731823520766,28.34532253,236.4,236.31,28.34532253]
[1731823522467,28.34532253,236.36,236.27,28.34532253]
[1731823522657,28.34532253,236.34,236.25,38.92732253]
[1731823523048,28.34532253,236.36,236.27,28.34532253]
[1731823523357,20.0,236.37,236.29,28.34532253]
[1731823524843,20.0,236.38,236.29,17.77467251]
[1731823526671,17.77467251,236.39,236.31,17.77467251]
[1731823527481,20.12549,236.44,236.33,17.77467251]
[1731823527662,20.0,236.42,236.32,17.77467251]
[1731823527863,17.77467251,236.39,236.3,28.35397251]
[1731823528056,17.77467251,236.39,236.3,17.77467251]
[1731823528953,17.77467251,236.41,236.31,23.776884]
[1731823529356,17.77467251,236.41,236.32,17.77467251]
[1731823529855,13.2692,236.49,236.38,17.77467251]
[1731823530156,12.5127,236.55,236.41,23.776884]
[1731823530366,17.77467251,236.5,236.4,17.77467251]
[1731823530565,17.77467251,236.48,236.39,23.776884]
[1731823530772,17.77467251,236.5,236.41,23.776884]
[1731823531486,17.77467251,236.5,236.41,22.71211941]
[1731823532161,30.2971,236.62,236.42,17.77467251]
[1731823532359,17.77467251,236.51,236.42,17.77467251]
[1731823532863,17.77467251,236.6,236.4,0.09367462]
[1731823532864,28.40434188,236.5,236.4,0.09367462]
[1731823533064,0.09367462,236.59,236.4,0.09367462]
[1731823533065,28.40434188,236.47,236.4,0.09367462]
[1731823533270,28.40434188,236.49,236.4,28.4980165]
[1731823533460,28.40434188,236.49,236.41,23.776884]
[1731823535679,28.40434188,236.49,236.4,0.09367462]
[1731823535981,28.40434188,236.41,236.35,12.1755]
[1731823536278,28.40434188,236.37,236.3,31.4588]
[1731823536459,20.0,236.48,236.31,28.40434188]
[1731823536779,20.0,236.54,236.37,0.09367462]
[1731823536978,20.0,236.54,236.39,28.40434188]
[1731823536979,28.40434188,236.49,236.39,28.40434188]
[1731823538359,28.40434188,236.49,236.33,0.1]
[1731823538360,28.40434188,236.49,236.41,28.40434188]
[1731823538566,28.40434188,236.49,236.39,28.40434188]
[1731823539582,28.40434188,236.49,236.35,0.25098]
[1731823539583,28.40434188,236.51,236.41,28.40434188]
[1731823540668,20.0,236.52,236.43,28.40434188]
[1731823544068,28.40434188,236.49,236.41,28.40434188]
[1731823544456,20.0,236.48,236.41,28.40434188]
[1731823545056,28.40434188,236.43,236.32,12.2572]
[1731823545260,28.40434188,236.41,236.32,12.2572]